{"text_format":"1","workbook":"xlsx","n_sheets":3,"sheets":["Работы+материалы","Расчеты","Расчеты как надо"],"not_rendered":{"charts":0,"images":1,"macros":1,"external_links":0,"defined_names":0,"comments":0,"pivot_tables":0},"unopened":[],"bounds":{"document_bytes":16777216,"sheet_cells":100000,"rows_first":2000,"rows_last":500,"rows_between":2000,"halvings":0,"cell_chars":16384,"cell_head_chars":4096},"cells_cut":0,"cells_raw":0,"read":"whole","date_system":"1900"}

{"sheet":"Работы+материалы","index":0,"n_rows":12,"n_cols":22,"rows_kept":12,"cut":false,"hidden":false,"merged":[[0,4,2,4],[0,21,2,21],[0,0,2,0],[0,2,2,2],[0,3,2,3],[0,1,2,1],[0,16,2,16],[1,11,2,11],[1,12,1,13],[1,14,2,14],[0,6,2,6],[0,7,2,7],[0,8,2,8],[0,9,2,9],[0,10,2,10],[0,11,0,14],[0,20,2,20],[0,15,2,15],[0,5,2,5],[0,17,2,17],[0,18,2,18],[0,19,2,19]]}
["Приз-нак новой сметы","Номер сметы\n(2)","Дата создания","Объект сметы","Члены комиссии для локальной сметы и дефектной ведомости\n(5)","Выводы комиссии для дефектной ведомости\n(6)","Номера расценок","Наименование и характеристика строительных работ и конструкций","Ед. изм.","Кол-во","Прямые затраты, руб.","В том числе, руб.",null,null,null,"Затраты труда рабочих, чел.-час.","Материалы|кол-во|цена","Материалы|кол-во|цена","Материалы|кол-во|цена","Материалы|кол-во|цена","Материалы|кол-во|цена","Материалы|кол-во|цена"]
[null,null,null,null,null,null,null,null,null,null,null,"Оплата труда рабочих","ЭММ",null,"Мате-риалы"]
[null,null,null,null,null,null,null,null,null,null,null,null,"Всего","З/п эмм"]
["Н",1,"2016-11-11","Административное здание",null,null,"08-05-002-02","Устройство крылец с входом с одной стороны в одну ступень","м2",225,139.19999999999999,23.96,7.13,0.85,108.11,3.12,"Клей Маска д/керамического гранита 25 кг|2,000|240,00","Подводка нерж. 60см|1,000|80,00","Круг отрезной п/метал. 230*2,5*22|4,000|36,90"]
[null,{"$f":"IF($H5>0,$B4,\"\")","v":1},{"$f":"IF($H5>0,$C4,\"\")","v":"2016-11-11"},{"$f":"IF($H5>0,$D4,\"\")","v":"Административное здание"},null,null,"08-05-002-02","Устройство крылец с входом с одной стороны в одну ступень","м2",null,139.19999999999999,23.96,7.13,0.85,108.11,3.12,"Металлолом|5,000|2,50","Лен |1,000|75,00"]
[null,{"$f":"IF($H6>0,$B5,\"\")","v":1},{"$f":"IF($H6>0,$C5,\"\")","v":"2016-11-11"},{"$f":"IF($H6>0,$D5,\"\")","v":"Административное здание"},null,null,"08-04-001-01","Установка перегородок из гипсовых плит в 1 слой при высоте этажа до 4 м","100м2",2,21008.89,889.87,265.58,33.96,19853.439999999999,96.83,null,null,"Клей Маска д/керамического гранита 25 кг|2,000|241,00"]
["Н",2,"2016-11-14","Столовая",null,null,"08-05-002-02","Устройство крылец с входом с одной стороны в одну ступень","м2",333,139.19999999999999,23.96,7.13,0.85,108.11,3.12,"Эмаль ПФ-115 черная 1,9кг|1,000|122,00","Цемент М 400 50кг|3,000|223,00","Труба PN25  20 бел. Арм.|16,000|48,00","Круг отрезной п/метал. 230*2,5*22|4,000|36,90","Клей Маска д/керамического гранита 25 кг|8,000|240,00"]
[null,2,{"$f":"IF($H8>0,$C7,\"\")","v":"2016-11-14"},{"$f":"IF($H8>0,$D7,\"\")","v":"Столовая"},null,null,"08-05-002-02","Устройство крылец с входом с одной стороны в одну ступень","м2",4,139.19999999999999,23.96,7.13,0.85,108.11,3.12,null,"Гвозди L150|100,000|7925,00","ГКЛ 2500*1200*9,5|12,000|1266,00"]
[null,2,{"$f":"IF($H9>0,$C8,\"\")","v":"2016-11-14"},"Столовая",null,null,"08-04-001-01","Установка перегородок из гипсовых плит в 1 слой при высоте этажа до 4 м","100м2",9,21008.89,889.87,265.58,33.96,19853.439999999999,96.83]
[null,2,{"$f":"IF($H10>0,$C9,\"\")","v":"2016-11-14"},"Столовая",null,null,"08-01-001-05","Кладка стен без облицовки при высоте этажа свыше 4 м","м3","1,00","448,56","43,41","13,31","1,59","391,84","5,18"]
[null,"",{"$f":"IF($H11>0,$C10,\"\")","v":""},"",{"$f":"IF($H11>0,$E10,\"\")","v":""},{"$f":"IF($H11>0,$F10,\"\")","v":""}]
[null,"",{"$f":"IF($H12>0,$C11,\"\")","v":""},"","",""]

{"sheet":"Расчеты","index":1,"n_rows":25,"n_cols":12,"rows_kept":25,"cut":false,"hidden":false,"merged":[[1,8,1,11],[1,0,4,0],[1,1,4,1],[1,2,4,2],[27,1,27,2],[1,3,1,7],[23,1,23,2],[24,1,24,2],[25,8,25,11]]}
[null,null,null,null,null,null,null,null,{"$f":"IF(OR(I$3>0,J$3>0,K$3>0,L$3>0,#REF!>0,#REF!>0,#REF!>0,#REF!>0,#REF!>0),\"\",\"х\")","v":{"$error":"#REF!"}},{"$f":"IF(OR(I$3>0,J$3>0,K$3>0,L$3>0,#REF!>0,#REF!>0,#REF!>0,#REF!>0,#REF!>0),\"\",\"х\")","v":{"$error":"#REF!"}},{"$f":"IF(OR(I$3>0,J$3>0,K$3>0,L$3>0,#REF!>0,#REF!>0,#REF!>0,#REF!>0,#REF!>0),\"\",\"х\")","v":{"$error":"#REF!"}},{"$f":"IF(OR(I$3>0,J$3>0,K$3>0,L$3>0,#REF!>0,#REF!>0,#REF!>0,#REF!>0,#REF!>0),\"\",\"х\")","v":{"$error":"#REF!"}}]
[null,"Единица измерения \nработ","Количество фактически выполненных работ","наименование материалов",null,null,null,null,"наименование материалов"]
[null,null,null,"Клей Маска д/керамического гранита 25 кг","Подводка нерж. 60см","Круг отрезной п/метал. 230*2,5*22","Металлолом","Лен ","Клей Маска д/керамического гранита 25 кг"]
[null,null,null,240,80,36.9,2.5,75,241]
[null,null,null,"на выполненный объем работ","на выполненный объем работ","на выполненный объем работ","на выполненный объем работ","на выполненный объем работ","на выполненный объем работ","на выполненный объем работ","на выполненный объем работ","на выполненный объем работ"]
["Объект (или участок)"]
["Административное здание"]
["Устройство крылец с входом с одной стороны в одну ступень","м2",225,"2 x 240,00\r\n= 480,00","1 x 80,00\r\n= 80,00","4 x 36,90\r\n= 147,60"]
["Устройство крылец с входом с одной стороны в одну ступень","м2"]
["Установка перегородок из гипсовых плит в 1 слой при высоте этажа до 4 м","100м2",2]
[]
[]
[]
[]
[]
[]
[]
[]
[]
[]
[]
[]
[null,null,null,1]
[null,{"$f":"SUM($C$8:$C$22)","v":227},null,{"$f":"D$23*D$4","v":240},{"$f":"E$23*E$4","v":0},0,0,0,0,0,0,0]
["Всего по отчету:",{"$f":"SUM($D$24:$L$24)","v":240}]

{"sheet":"Расчеты как надо","index":2,"n_rows":10,"n_cols":13,"rows_kept":10,"cut":false,"hidden":false,"merged":[[27,1,27,2],[23,1,23,2],[24,1,24,2],[25,8,25,12],[1,0,4,0],[1,1,4,1],[1,2,4,2],[1,3,1,7],[1,8,1,12]]}
[null,null,null,null,null,null,null,null,{"$f":"IF(OR(I$3>0,J$3>0,K$3>0,L$3>0,M$3>0,#REF!>0,#REF!>0,#REF!>0,#REF!>0),\"\",\"х\")","v":{"$error":"#REF!"}},{"$f":"IF(OR(I$3>0,J$3>0,K$3>0,L$3>0,M$3>0,#REF!>0,#REF!>0,#REF!>0,#REF!>0),\"\",\"х\")","v":{"$error":"#REF!"}},{"$f":"IF(OR(I$3>0,J$3>0,K$3>0,L$3>0,M$3>0,#REF!>0,#REF!>0,#REF!>0,#REF!>0),\"\",\"х\")","v":{"$error":"#REF!"}},{"$f":"IF(OR(I$3>0,J$3>0,K$3>0,L$3>0,M$3>0,#REF!>0,#REF!>0,#REF!>0,#REF!>0),\"\",\"х\")","v":{"$error":"#REF!"}},{"$f":"IF(OR(I$3>0,J$3>0,K$3>0,L$3>0,M$3>0,#REF!>0,#REF!>0,#REF!>0,#REF!>0),\"\",\"х\")","v":{"$error":"#REF!"}}]
["Наименование объектов и видов работ","Единица измерения \nработ","Количество фактически выполненных работ","наименование материалов",null,null,null,null,"наименование материалов"]
[null,null,null,"Клей Маска д/керамического гранита 25 кг","Подводка нерж. 60см","Круг отрезной п/метал. 230*2,5*22","Металлолом","Лен ","Клей Маска д/керамического гранита 25 кг"]
[null,null,null,240,80,36.9,2.5,75,241]
[null,null,null,"на выполненный объем работ","на выполненный объем работ","на выполненный объем работ","на выполненный объем работ","на выполненный объем работ","на выполненный объем работ","на выполненный объем работ","на выполненный объем работ","на выполненный объем работ","на выполненный объем работ"]
["Объект (или участок)"]
["Административное здание"]
["Устройство крылец с входом с одной стороны в одну ступень","м2",225,"2 x 240,00\r\n= 480,00","1 x 80,00\r\n= 80,00","4 x 36,90\r\n= 147,60"]
["Устройство крылец с входом с одной стороны в одну ступень","м2",null,null,null,null,"5 x 2,50\r\n= 12,50","1 x 75,00\r\n= 75,00"]
["Установка перегородок из гипсовых плит в 1 слой при высоте этажа до 4 м","100м2",2,null,null,null,null,null,"2 x 241,00\n= 482,00"]